fUST/lending_fUST_20241207
["ID","MTS","AMOUNT","RATE_DAILY","PERIOD"]
[344582846,1733568646963,-598.37,0.00024657,2]
[344582847,1733568646973,-1421.49,0.00024657,2]
[344582848,1733568646982,-500.0,0.00024657,2]
[344582849,1733568646991,-626.84,0.00024657,2]
[344582850,1733568647000,-500.0,0.00024657,2]
[344582851,1733568647009,-2283.46,0.00024657,2]
[344582852,1733568647023,-710.81,0.00024657,2]
[344582853,1733568647032,-500.0,0.00024657,2]
[344582854,1733568647041,-500.0,0.00024657,2]
[344582855,1733568647050,-500.0,0.00024657,2]
[344582856,1733568647059,-618.03,0.00024657,2]
[344582857,1733568647068,-500.0,0.00024657,2]
[344582858,1733568647077,-1212.16,0.00024657,2]
[344582859,1733568647086,-665.64,0.00024657,2]
[344582860,1733568647095,-500.0,0.00024657,2]
[344582861,1733568647104,-500.0,0.00024657,2]
[344582862,1733568647113,-500.0,0.00024657,2]
[344582863,1733568647123,-500.0,0.00024657,2]
[344582864,1733568647131,-500.0,0.00024657,2]
[344582865,1733568647143,-955.97,0.00024657,2]
[344582866,1733568647152,-1472.84,0.00024657,2]
[344582867,1733568647162,-1556.75,0.00024657,2]
[344582868,1733568647171,-500.0,0.00024657,2]
[344582869,1733568647180,-500.0,0.00024657,2]
[344582870,1733568647267,-582.04,0.00024657,2]
[344582871,1733568647278,-500.0,0.00024657,2]
[344582872,1733568647287,-526.5018773,0.00024657,2]
[344582873,1733568647296,-558.82,0.00024657,2]
[344582874,1733568647305,-587.08,0.00024657,2]
[344582875,1733568647315,-500.0,0.00024657,2]
[344582876,1733568647324,-500.0,0.00024657,2]
[344582877,1733568647333,-500.0,0.00024657,2]
[344582878,1733568647342,-977.76,0.00024657,2]
[344582879,1733568647351,-500.0,0.00024657,2]
[344582880,1733568647360,-500.0,0.00024657,2]
[344582881,1733568647368,-500.0,0.00024657,2]
[344582882,1733568647377,-500.0,0.00024657,2]
[344582883,1733568647386,-500.0,0.00024657,2]
[344582884,1733568647395,-1262.29,0.00024657,2]
[344582885,1733568647405,-12713.9,0.00024657,2]
[344582886,1733568647413,-500.0,0.00024657,2]
[344582887,1733568647423,-500.0,0.00024657,2]
[344582888,1733568647431,-500.0,0.00024657,2]
[344582889,1733568647441,-500.0,0.00024657,2]
[344582890,1733568647450,-8460.37,0.00024657,2]
[344582891,1733568647459,-500.0,0.00024657,2]
[344582892,1733568647468,-500.0,0.00024657,2]
[344582893,1733568647477,-500.0,0.00024657,2]
[344582894,1733568647485,-546.72,0.00024657,2]
[344582895,1733568647494,-500.0,0.00024657,2]
[344582896,1733568647503,-500.0,0.00024657,2]
[344582897,1733568647514,-1503.66,0.00024657,2]
[344582898,1733568647524,-1936.95,0.00024657,2]
[344582899,1733568647533,-500.0,0.00024657,2]
[344582900,1733568647542,-500.0,0.00024657,2]
[344582901,1733568647551,-500.0,0.00024657,2]
[344582902,1733568647560,-500.0,0.00024657,2]
[344582903,1733568647569,-200.0,0.00024658,15]
[344582904,1733568647578,-500.0,0.00024673,2]
[344582905,1733568647587,-348.90045195,0.00024673,2]
[344582906,1733568647597,-279.33199203,0.00024673,2]
[344582907,1733568647606,-641.45578968,0.00024673,2]
[344582908,1733568647615,-500.0,0.00024673,2]
[344582909,1733568647624,-500.0,0.00024673,2]
[344582910,1733568647633,-500.0,0.00024673,2]
[344582911,1733568647642,-160.20816554,0.00024673,2]
[344582912,1733568647651,-151.0,0.000248,9]
[344582913,1733568647660,-151.0,0.000248,5]
[344582914,1733568647670,-157.501102,0.000248,6]
[344582915,1733568647679,-151.0,0.000249,9]
[344582916,1733568647688,-151.0,0.000249,7]
[344582917,1733568647697,-151.0,0.000249,7]
[344582918,1733568647706,-829.77528338,0.000249,2]
[344582919,1733568647715,-153.0,0.00024911,2]
[344582920,1733568647724,-500.0,0.00024931,2]
[344582921,1733568647733,-500.0,0.00024931,2]
[344582922,1733568647742,-500.0,0.00024931,2]
[344582923,1733568647751,-500.0,0.00024931,2]
[344582924,1733568647761,-515.59,0.00024931,2]
[344582925,1733568647770,-500.0,0.00024931,2]
[344582926,1733568647779,-500.0,0.00024931,2]
[344582927,1733568647787,-500.0,0.00024931,2]
[344582928,1733568647796,-500.0,0.00024931,2]
[344582929,1733568647805,-500.0,0.00024931,2]
[344582930,1733568647814,-500.0,0.00024931,2]
[344582931,1733568647823,-500.0,0.00024931,2]
[344582932,1733568647832,-516.34102257,0.00024931,2]
[344582933,1733568647841,-500.0,0.00024931,2]
[344582934,1733568647850,-500.0,0.00024931,2]
[344582935,1733568647858,-500.0,0.00024931,2]
[344582936,1733568647867,-500.0,0.00024931,2]
[344582937,1733568647876,-500.0,0.00024931,2]
[344582938,1733568647885,-500.0,0.00024931,2]
[344582939,1733568647894,-500.0,0.00024931,2]
[344582940,1733568647904,-604.16,0.00024931,2]
[344582941,1733568647913,-500.0,0.00024931,2]
[344582942,1733568647922,-500.0,0.00024931,2]
[344582943,1733568647931,-500.0,0.00024931,2]
[344582944,1733568647940,-247.63929832,0.00024931,2]
[344582945,1733568647948,-500.0,0.00024931,2]
[344582946,1733568647957,-521.09979615,0.00024931,2]
[344582947,1733568647966,-500.0,0.00024931,2]
[344582948,1733568647975,-500.0,0.00024931,2]
[344582949,1733568647984,-500.0,0.00024931,2]
[344582950,1733568647993,-500.0,0.00024931,2]
[344582951,1733568648003,-500.0,0.00024931,2]
[344582952,1733568648012,-500.0,0.00024931,2]
[344582953,1733568648021,-527.57,0.00024931,2]
[344582954,1733568648031,-496.72672029,0.00024931,2]
[344582955,1733568648040,-500.0,0.00024931,2]
[344582956,1733568648049,-592.9,0.00024931,2]
[344582957,1733568648059,-695.37,0.00024931,2]
[344582958,1733568648068,-500.0,0.00024931,2]
[344582959,1733568648077,-500.0,0.00024931,2]
[344582960,1733568648087,-500.0,0.00024931,2]
[344582961,1733568648097,-500.0,0.00024931,2]
[344582962,1733568648107,-500.0,0.00024931,2]
[344582963,1733568648116,-500.0,0.00024931,2]
[344582964,1733568648125,-834.53,0.00024931,2]
[344582965,1733568648135,-500.0,0.00024931,2]
[344582966,1733568648144,-500.0,0.00024931,2]
[344582967,1733568648153,-500.0,0.00024931,2]
[344582968,1733568648163,-515.54178256,0.00024931,2]
[344582969,1733568648172,-168.0,0.00024931,2]
[344582970,1733568648182,-500.0,0.00024931,2]
[344582971,1733568648191,-500.0,0.00024931,2]
[344582972,1733568648201,-500.0,0.00024931,2]
[344582973,1733568648211,-500.0,0.00024931,2]
[344582974,1733568648223,-500.0,0.00024931,2]
[344582975,1733568648233,-500.0,0.00024931,2]
[344582976,1733568648246,-500.0,0.00024931,2]
[344582977,1733568648255,-500.0,0.00024931,2]
[344582978,1733568648266,-500.0,0.00024931,2]
[344582979,1733568648277,-500.0,0.00024931,2]
[344582980,1733568648286,-847.57,0.00024931,2]
[344582981,1733568648295,-578.28776336,0.00024931,2]
[344582982,1733568648304,-885.65,0.00024931,2]
[344582983,1733568648313,-500.0,0.00024931,2]
[344582984,1733568648324,-555.72,0.00024931,2]
[344582985,1733568648333,-637.89524564,0.00024931,2]
[344582986,1733568648343,-636.14,0.00024931,2]
[344582987,1733568648352,-500.0,0.00024931,2]
[344582988,1733568648361,-500.0,0.00024931,2]
[344582989,1733568648370,-500.0,0.00024931,2]
[344582990,1733568648379,-500.0,0.00024931,2]
[344582991,1733568648389,-500.0,0.00024931,2]
[344582992,1733568648398,-500.0,0.00024931,2]
[344582993,1733568648407,-500.0,0.00024931,2]
[344582994,1733568648416,-500.0,0.00024931,2]
[344582995,1733568648425,-500.0,0.00024931,2]
[344582996,1733568648434,-500.0,0.00024931,2]
[344582997,1733568648443,-500.0,0.00024931,2]
[344582998,1733568648452,-500.0,0.00024931,2]
[344582999,1733568648461,-626.86,0.00024931,2]
[344583000,1733568648469,-500.0,0.00024931,2]
[344583001,1733568648480,-500.0,0.00024931,2]
[344583002,1733568648489,-500.0,0.00024931,2]
[344583003,1733568648499,-500.0,0.00024931,2]
[344583004,1733568648508,-509.8820129,0.00024931,2]
[344583005,1733568648519,-500.0,0.00024931,2]
[344583006,1733568648528,-500.0,0.00024931,2]
[344583007,1733568648538,-59.12664831,0.00024931,2]
[344583008,1733568648662,-440.87335169,0.00024931,2]
[344583009,1733568648672,-500.0,0.00024931,2]
[344583010,1733568648681,-725.71,0.00024931,2]
[344583011,1733568648690,-500.0,0.00024931,2]
[344583012,1733568648699,-500.0,0.00024931,2]
[344583013,1733568648784,-646.13,0.00024931,2]
[344583014,1733568648795,-500.0,0.00024931,2]
[344583015,1733568648804,-500.0,0.00024931,2]
[344583016,1733568648813,-504.88,0.00024931,2]
[344583017,1733568648823,-243.49237156,0.00024931,2]
[344583018,1733568648832,-518.88451119,0.00024931,2]
[344583019,1733568648841,-500.0,0.00024931,2]
[344583020,1733568648850,-500.0,0.00024931,2]
[344583021,1733568648860,-500.0,0.00024931,2]
[344583022,1733568648869,-500.0,0.00024931,2]
[344583023,1733568648878,-500.0,0.00024931,2]
[344583024,1733568648887,-500.0,0.00024931,2]
[344583025,1733568648897,-500.0,0.00024931,2]
[344583026,1733568648906,-500.0,0.00024931,2]
[344583027,1733568648916,-500.0,0.00024931,2]
[344583028,1733568648925,-500.0,0.00024931,2]
[344583029,1733568648935,-532.07,0.00024931,2]
[344583030,1733568648944,-500.0,0.00024931,2]
[344583031,1733568648953,-661.61,0.00024931,2]
[344583032,1733568648963,-500.0,0.00024931,2]
[344583033,1733568648972,-500.0,0.00024931,2]
[344583034,1733568648981,-63.93356556,0.00024931,2]
[344583035,1733568649004,-288.8301986,0.00024931,2]
[344583036,1733568649147,-0.4929387,0.00024931,2]
[344583038,1733568808187,249.224413,0.00013973,2]
[344583039,1733569130166,24353.9152994,0.0001,2]
[344583069,1733569835224,-185.594808,0.00020259,2]
[344583070,1733569835235,-300.0,0.00020346,2]
[344583071,1733569835245,-300.0,0.00020346,2]
[344583072,1733569835254,-26289.0578835,0.00020347,2]
[344583073,1733569835264,-249.224413,0.00020447,2]
[344583074,1733569835274,-255.477969,0.00021179,2]
[344583075,1733569835283,-1221.7737894,0.00021743,2]
[344583076,1733569835293,-420.0,0.00022147,2]
[344583077,1733569835309,-420.0,0.00022381,2]
[344583078,1733569835323,-3184.78201763,0.0002242,2]
[344583079,1733569835333,-19238.71510851,0.00022441,2]
[344583080,1733569835351,-663.71404802,0.00022441,2]
[344583081,1733569835363,-4513.7,0.00022441,2]
[344583095,1733569838064,-421.11114707,0.00022441,2]
[344583101,1733569838233,-62.7596964,0.00022441,2]
[344583103,1733569838244,-268.2214467,0.0002252,2]
[344583105,1733569838253,-3184.78201759,0.00023586,2]
[344583107,1733569838264,-500.0000019,0.00023715,2]
[344583108,1733569838274,-188.65488865,0.00023715,7]
[344583145,1733569840052,-757.73003372,0.00023715,7]
[344583146,1733569840062,-336.92736304,0.00024,2]
[344583147,1733569840072,-587.0,0.00024107,2]
[344583148,1733569840081,-3101.84260324,0.00024444,4]
[344583163,1733569843370,-2305.59732554,0.00024444,4]
[344583164,1733569843381,-587.0,0.00024619,2]
[344583165,1733569843391,-500.0,0.00024656,2]
[344583166,1733569843401,-251.34390659,0.00024656,2]
[344583167,1733569843411,-500.0,0.00024656,2]
[344583168,1733569843420,-542.83271218,0.00024656,2]
[344583169,1733569843430,-500.0,0.00024656,2]
[344583170,1733569843440,-500.0,0.00024656,2]
[344583171,1733569843450,-500.0,0.00024656,2]
[344583172,1733569843460,-500.0,0.00024656,2]
[344583173,1733569843469,-500.0,0.00024656,2]
[344583174,1733569843479,-500.0,0.00024656,2]
[344583175,1733569843489,-543.49,0.00024657,2]
[344583176,1733569843498,-330.86268701,0.00024657,2]
[344583185,1733570016674,241.358129,0.00013973,2]
[344583186,1733570640304,1101.4397263,0.0001,2]
[344583187,1733570670445,229.290222,0.00013973,2]
[344583189,1733570908349,1290.63,0.00024,10]
[344583233,1733571032439,-229.290222,0.00020447,2]
[344583234,1733571032448,-300.0,0.00021388,2]
[344583235,1733571032458,-300.0,0.00021388,2]
[344583236,1733571032468,-24900.0,0.00021389,2]
[344583237,1733571032480,-6414.9085694,0.00021462,2]
[344583238,1733571032490,-2632.01764765,0.00021517,2]
[344583239,1733571032499,-218.6332437,0.00021617,2]
[344583240,1733571032509,-867.753093,0.00021737,2]
[344583241,1733571032519,-216.6771255,0.00021784,2]
[344583242,1733571032530,-158.0,0.00022,2]
[344583243,1733571032540,-180.38925,0.00022069,2]
[344583244,1733571032549,-5572.2364688,0.00022098,2]
[344583245,1733571032559,-385.4714249,0.00022121,2]
[344583246,1733571032568,-2482.9756317,0.00022123,2]
[344583247,1733571032577,-2632.01764764,0.00022813,2]
[344583248,1733571032588,-165.7902038,0.00022964,2]
[344583249,1733571032597,-157.43,0.00023072,2]
[344583250,1733571032606,-420.0,0.00023256,2]
[344583251,1733571032616,-351.0167534,0.00023342,2]
[344583252,1733571032627,-420.0,0.00023527,2]
[344583253,1733571032637,-351.0167534,0.00023726,2]
[344583254,1733571032646,-351.0167534,0.00023726,2]
[344583255,1733571032655,-351.0167534,0.00023726,2]
[344583256,1733571032665,-351.0167534,0.00023726,2]
[344583257,1733571032674,-351.0167534,0.00023726,2]
[344583258,1733571032683,-155.24214553,0.00024031,2]
[344583259,1733571032693,-2632.01764764,0.0002411,2]
[344583260,1733571032702,-1014.51372355,0.000244,2]
[344583261,1733571032711,-500.0,0.00024473,2]
[344583262,1733571032723,-500.0,0.00024473,2]
[344583263,1733571032732,-3014.47677703,0.0002449,2]
[344583264,1733571032741,-392.20454936,0.00024498,2]
[344583265,1733571032750,-500.0,0.00024498,2]
[344583266,1733571032759,-500.0,0.00024498,2]
[344583267,1733571032769,-500.0,0.00024498,2]
[344583268,1733571032778,-500.0,0.00024498,2]
[344583269,1733571032788,-500.0,0.00024498,2]
[344583270,1733571032797,-526.05593945,0.00024498,2]
[344583271,1733571032807,-500.0,0.00024498,2]
[344583272,1733571032817,-500.0,0.00024498,2]
[344583273,1733571032826,-500.0,0.00024498,2]
[344583274,1733571032836,-502.06442658,0.00024498,2]
[344583275,1733571032845,-189694.29571402,0.000245,2]
[344583276,1733571032883,-331.01247701,0.000245,2]
[344583277,1733571032894,-13943.07762973,0.000245,2]
[344583278,1733571032905,-3025.84536219,0.000245,2]
[344583292,1733571038364,-247.44077962,0.00024499,2]
[344583293,1733571038374,-249.16954472,0.00024499,2]
[344583294,1733571038384,-237.6603383,0.00024499,2]
[344583295,1733571038394,-8298.45034004,0.000245,2]
[344583296,1733571038406,-15698.37774332,0.000245,2]
[344583297,1733571038418,-451.2,0.000245,2]
[344583298,1733571038430,-34107.82285065,0.000245,2]
[344583299,1733571038440,-1240.23242656,0.000245,2]
[344583300,1733571038450,-344552.91139784,0.000245,5]
[344583306,1733571040365,-1226.61,0.000245,5]
[344583322,1733571043614,-222.45160295,0.00024499,2]
[344583323,1733571043624,-29285.23240705,0.000245,5]
[344583324,1733571043635,-4904.47693387,0.000245,5]
[344583325,1733571043674,-472.80276072,0.000245,5]
[344583326,1733571043685,-289.56744586,0.000245,5]
[344583333,1733571619831,223.226686,0.00013973,2]
[344583382,1733572232784,-223.226686,0.00020447,2]
[344583383,1733572232794,-300.0,0.00022981,2]
[344583384,1733572232803,-300.0,0.00022981,2]
[344583385,1733572232813,-93.28664115,0.00022983,2]
[344583386,1733572232883,-24806.71335885,0.00022983,2]
[344583387,1733572232892,-803.8836,0.00023225,2]
[344583388,1733572232901,-500.0,0.00023593,2]
[344583389,1733572232911,-210.692,0.0002368,2]
[344583390,1733572232920,-1645.01102981,0.0002391,2]
[344583391,1733572232930,-20938.0,0.00024,2]
[344583392,1733572232939,-187.03,0.0002401,5]
[344583393,1733572232948,-351.0167534,0.000241,2]
[344583394,1733572232958,-351.0167534,0.000241,2]
[344583395,1733572232968,-351.0167534,0.000241,2]
[344583396,1733572232977,-351.0167534,0.000241,2]
[344583397,1733572232987,-351.0167534,0.000241,2]
[344583398,1733572232996,-351.0167534,0.000241,2]
[344583399,1733572233006,-351.0167534,0.000241,2]
[344583400,1733572233015,-351.0167534,0.000241,2]
[344583401,1733572233025,-3061.81753665,0.00024294,2]
[344583402,1733572233035,-913.06235115,0.000244,2]
[344583403,1733572233045,-500.0,0.00024473,2]
[344583404,1733572233055,-500.0,0.00024473,2]
[344583405,1733572233064,-500.0,0.00024473,2]
[344583406,1733572233074,-501.95594323,0.00024473,2]
[344583407,1733572233084,-500.0,0.00024473,2]
[344583408,1733572233094,-159.4067472,0.00024473,2]
[344583409,1733572233103,-500.0,0.00024473,2]
[344583410,1733572233113,-500.0,0.00024473,2]
[344583411,1733572233122,-500.65408589,0.00024473,2]
[344583412,1733572233132,-503.03255594,0.00024473,2]
[344583413,1733572233142,-350.94683171,0.00024473,2]
[344583414,1733572233151,-500.41507009,0.00024473,2]
[344583415,1733572233161,-220.12877861,0.00024473,2]
[344583416,1733572233170,-4230.93713116,0.0002449,2]
[344583417,1733572233179,-199162.56158772,0.000245,2]
[344583418,1733572233190,-620.11621329,0.000245,2]
[344583419,1733572233200,-25124.10016285,0.000245,5]
[344583420,1733572233212,-14433.78521868,0.000245,5]
[344583421,1733572233224,-4000.0,0.000245,5]
[344583431,1733572238487,-155.01210728,0.00023971,2]
[344583432,1733572238497,-9537.08790671,0.000245,5]
[344583433,1733572238509,-4475.79036626,0.000245,5]
[344583434,1733572238607,-4984.04977897,0.000245,5]
[344583435,1733572238618,-2246.9999981,0.000245,5]
[344583461,1733572240509,-141571.67637132,0.000245,5]
[344583574,1733572246542,-500.0,0.00024473,2]
[344583575,1733572246552,-1221.6918177,0.000245,5]
[344583576,1733572440125,217.062482,0.00013973,2]
[344583577,1733573109578,214.288591,0.00013973,2]
[344583580,1733573202253,10367.652068,0.0001,2]
[344583655,1733573432725,-653.92312299,0.00020041,2]
[344583913,1733573435188,-460.19669894,0.00020041,2]
[344583920,1733573435241,-3885.88017807,0.00020041,2]
[344583923,1733573435251,-5000.0,0.00020243,2]
[344583926,1733573435260,-300.0,0.00020446,2]
[344583929,1733573435270,-214.288591,0.00020447,2]
[344583933,1733573435281,-420.0,0.00022491,2]
[344583936,1733573435291,-3132.643,0.00023079,2]
[344583939,1733573435301,-201.734,0.0002343,2]
[344583942,1733573435311,-24900.0,0.00023456,2]
[344583945,1733573435320,-586.945327,0.0002347,2]
[344583948,1733573435329,-1804.53135278,0.00024373,2]
[344583950,1733573435338,-821.75611608,0.000244,2]
[344583953,1733573435348,-351.0167534,0.000244,2]
[344583955,1733573435358,-351.0167534,0.000244,2]
[344583957,1733573435367,-383.0367377,0.0002441,2]
[344583959,1733573435376,-372.21844301,0.00024473,2]
[344583961,1733573435386,-500.0,0.00024473,2]
[344583963,1733573435395,-12629.57236532,0.000245,2]
[344584049,1733573438665,-2500.0,0.000245,2]
[344584050,1733573438677,-1199.72462013,0.000245,2]
[344584051,1733573438718,-60860.80630591,0.000245,2]
[344584052,1733573438730,-336.5774975,0.000245,2]
[344584063,1733573440725,-500.0,0.000245,2]
[344584116,1733573443839,-1923.08729107,0.00024255,2]
[344584117,1733573443849,-351.0167534,0.000244,2]
[344584118,1733573443859,-30072.82709814,0.000245,2]
[344584119,1733573443873,-20699.88742288,0.000245,2]
[344584120,1733573443894,-20572.52588091,0.000245,2]
[344584121,1733573443904,-310.05810664,0.000245,2]
[344584122,1733573443914,-225797.45411637,0.000245,5]
[344584131,1733573636659,5000.0,0.00024,10]
[344584132,1733573644967,5000.0,0.00024,10]
[344584133,1733573693679,161.5846538,0.00013973,2]
[344584136,1733574287564,192.859731,0.00013973,2]
[344584140,1733574507177,1868.20061309,0.000176,2]
[344584179,1733574631804,-192.859731,0.00020447,2]
[344584181,1733574631814,-300.0,0.00022988,2]
[344584183,1733574631823,-245.51645502,0.00022988,2]
[344584194,1733574637756,-54.48354498,0.00022988,2]
[344584195,1733574637766,-24900.0,0.00022989,2]
[344584196,1733574637776,-385.974427,0.00023174,2]
[344584197,1733574637786,-212.632,0.0002328,2]
[344584198,1733574637795,-155.00060536,0.00023911,2]
[344584199,1733574637805,-2169.0,0.00024132,2]
[344584200,1733574637814,-2373.0,0.00024132,2]
[344584201,1733574637824,-150.0,0.00024132,2]
[344584202,1733574637833,-191.5183688,0.00024254,2]
[344584203,1733574637845,-818.7165803,0.000244,2]
[344584204,1733574637855,-739.58050449,0.000244,2]
[344584205,1733574637865,-307.37966801,0.00024499,2]
[344584206,1733574637876,-500.0,0.00024499,2]
[344584207,1733574637886,-500.0,0.00024499,2]
[344584208,1733574637895,-500.0,0.00024499,2]
[344584209,1733574637905,-300.0,0.00024499,2]
[344584210,1733574637915,-609.7581729,0.00024499,2]
[344584211,1733574637924,-10548.04189328,0.000245,2]
[344584212,1733574637937,-23937.14142206,0.000245,2]
[344584232,1733574643091,-77543.75757775,0.000245,2]
[344584233,1733574643100,-155.02905332,0.000245,2]
[344584234,1733574643110,-327.86257714,0.000245,5]
[344584235,1733574643122,-4902.87876185,0.000245,5]
[344584236,1733574643149,-5272.20631128,0.000245,5]
[344584237,1733574643160,-1600.11976994,0.000245,5]
[344584247,1733574652356,3926.29296144,0.00024,10]
[344584249,1733574762027,1355.32620962,0.00024,10]
[344584250,1733574930785,5574.0,0.00026,60]
[344584251,1733574961769,181.652991,0.00013973,2]
[344584259,1733575288030,153.55780465,0.00024,10]
[344584264,1733575807701,180.649574,0.00013973,2]
[344584285,1733575832347,-180.649574,0.00020447,2]
[344584286,1733575832358,-279.62806951,0.00022461,2]
[344584287,1733575832405,-20.37193049,0.00022461,2]
[344584288,1733575832415,-300.0,0.00022461,2]
[344584289,1733575832425,-3605.92103095,0.00022462,2]
[344584341,1733575840031,-8742.80765459,0.00022462,2]
[344584342,1733575840043,-12551.27131446,0.00022462,2]
[344584343,1733575840054,-192.987214,0.00023028,2]
[344584344,1733575840064,-203.605,0.0002328,2]
[344584345,1733575840074,-7276.42251477,0.0002344,2]
[344584376,1733575843184,-14267.05380942,0.0002344,2]
[344584377,1733575843194,-153.0,0.000242,2]
[344584378,1733575843203,-213.2496734,0.000242,2]
[344584379,1733575843213,-153.0,0.000242,2]
[344584380,1733575843223,-153.0,0.000242,2]
[344584381,1733575843232,-153.0,0.000242,2]
[344584382,1733575843242,-191.5183689,0.00024254,2]
[344584383,1733575843251,-278.0487338,0.000243,2]
[344584384,1733575843260,-153.0,0.000243,2]
[344584385,1733575843270,-305.6452758,0.000243,2]
[344584386,1733575843280,-426.4993468,0.000243,2]
[344584387,1733575843290,-306.0,0.000243,2]
[344584388,1733575843301,-420.0,0.00024396,2]
[344584390,1733575843310,-665.62245396,0.000244,2]
[344584391,1733575843320,-2740.68421887,0.000244,2]
[344584392,1733575843329,-211.72695186,0.00024473,2]
[344584393,1733575843338,-500.0,0.00024473,2]
[344584394,1733575843348,-500.0,0.00024473,2]
[344584395,1733575843357,-500.0,0.00024473,2]
[344584396,1733575843367,-77182.31872369,0.000245,2]
[344584397,1733575843381,-4983.5358268,0.000245,2]
[344584398,1733575843393,-1957.95324001,0.000245,2]
[344584399,1733575843405,-1355.32620962,0.000245,2]
[344584413,1733575973060,1517.03,0.00022,30]
[344584414,1733576430589,170.663849,0.00013973,2]
[344584434,1733577035087,-170.663849,0.00020447,2]
[344584436,1733577035097,-230.8970076,0.00022685,2]
[344584750,1733577038186,-69.1029924,0.00022685,2]
[344584752,1733577038195,-300.0,0.00022685,2]
[344584754,1733577038205,-4549.84326437,0.00022686,2]
[344584931,1733577040216,-20350.15673563,0.00022686,2]
[344584933,1733577040226,-195.133,0.0002328,2]
[344584934,1733577040237,-2373.0,0.00023448,2]
[344584935,1733577040253,-2169.0,0.00023448,2]
[344584936,1733577040262,-192.9872143,0.000235,2]
[344584937,1733577040271,-155.00003027,0.00023852,2]
[344584938,1733577040280,-3121.26207827,0.000244,2]
[344584939,1733577040290,-351.0167534,0.000244,2]
[344584940,1733577040304,-351.0167534,0.000244,2]
[344584941,1733577040313,-351.0167534,0.000244,2]
[344584942,1733577040322,-599.0602086,0.000244,2]
[344584943,1733577040332,-351.0167534,0.000244,2]
[344584944,1733577040342,-153.0,0.000244,2]
[344584945,1733577040351,-351.0167534,0.000244,2]
[344584946,1733577040360,-351.0167534,0.000244,2]
[344584947,1733577040369,-351.0167534,0.000244,2]
[344584948,1733577040379,-351.0167534,0.000244,2]
[344584949,1733577040388,-351.0167534,0.000244,2]
[344584950,1733577040397,-25444.07208113,0.00024434,2]
[344584951,1733577040407,-43354.50253023,0.000245,2]
[344584952,1733577040419,-35640.73783606,0.000245,2]
[344585123,1733577043215,-3313.98599159,0.000245,2]
[344585125,1733577043224,-159.31874543,0.000245,2]
[344585137,1733577043332,-24429.92422307,0.000245,5]
[344585140,1733577043348,-10358.43827124,0.000245,5]
[344585142,1733577043359,-124214.48360276,0.000245,5]
[344585479,1733577050397,227.184646,0.00013973,2]
[344585480,1733577080768,1813.58644682,0.00024,10]
[344585481,1733577118956,2585.82217612,0.00024,10]
[344585482,1733577739122,223.904646,0.00013973,2]
[344585483,1733578226789,10290.56555889,0.00014999,2]
[344585530,1733578232354,-1862.87629645,0.000198,2]
[344585531,1733578232364,-608.19158355,0.0001999,2]
[344585532,1733578232376,-5890.70350673,0.0001999,2]
[344585548,1733578240293,-1119.10490971,0.0001999,2]
[344585549,1733578240303,-171.71438706,0.0002,2]
[344585550,1733578240312,-223.904646,0.00020447,2]
[344585551,1733578240322,-250.0,0.00021535,2]
[344585552,1733578240331,-300.0,0.00021876,2]
[344585553,1733578240341,-300.0,0.00021877,2]
[344585554,1733578240350,-8109.9745298,0.0002188,2]
[344585566,1733578243491,-16790.0254702,0.0002188,2]
[344585567,1733578243501,-168.350149,0.00022752,2]